bitfinex/quotes_ETHUSD_20220227
["timestamp","ask_amount","ask_price","bid_price","bid_amount"]
[1645972723960,0.6621,2763.7,2763.5,0.00375566]
[1645972724361,1.04082816,2763.6,2763.5,0.00375566]
[1645972724758,0.6621,2763.7,2763.5,0.00375566]
[1645972725009,0.6621,2763.7,2763.5,0.00375572]
[1645972725807,0.6621,2763.7,2763.5,5.572e-05]
[1645972725808,3.5,2763.6,2763.5,5.572e-05]
[1645972726008,3.5,2763.6,2762.1,0.05448831]
[1645972726009,0.36284428,2763.4,2762.1,0.05448831]
[1645972726210,0.3621,2763.2,2762.1,0.05448831]
[1645972726407,2.11204428,2763.4,2762.1,0.05448831]
[1645972726408,0.3621,2763.0,2762.1,0.05448831]
[1645972726809,0.6621,2763.0,2762.1,0.05448831]
[1645972727209,1.30737869,2762.8,2762.1,0.05448831]
[1645972727611,1.60737869,2762.8,2762.1,0.05448831]
[1645972728111,1.60737869,2762.8,2761.4,0.3621]
[1645972728412,1.60737869,2762.8,2761.5,1.5311295]
[1645972728659,1.96947869,2762.8,2761.5,1.5311295]
[1645972728863,0.3621,2762.6,2761.1,2.8485]
[1645972729163,0.3621,2762.6,2761.3,0.05448831]
[1645972729164,0.3621,2762.4,2761.3,0.05448831]
[1645972729362,0.6621,2762.4,2761.3,0.05448831]
[1645972729764,1.56047885,2762.0,2760.8,3.579]
[1645972729962,0.6621,2762.0,2761.3,0.05448831]
[1645972730765,0.3,2762.0,2761.3,0.05448831]
[1645972730965,1.0,2762.5,2761.5,0.00446215]
[1645972731167,2.0,2762.6,2761.7,0.05448831]
[1645972731371,2.0,2762.9,2762.1,0.05448831]
[1645972731564,2.0,2762.9,2761.5,0.00446215]
[1645972731763,2.0,2762.9,2761.8,0.05448831]
[1645972731962,0.3621,2762.8,2761.8,0.05448831]
[1645972732164,0.3621,2762.8,2762.4,0.00446077]
[1645972732414,0.6621,2762.8,2762.4,0.00446077]
[1645972732606,1.20965671,2762.5,2762.4,0.00446077]
[1645972733407,1.20965671,2762.5,2762.3,0.00446086]
[1645972733408,1.57175671,2762.5,2762.3,0.00446086]
[1645972733608,2.77758671,2762.5,2762.3,0.00446086]
[1645972734213,3.77758671,2762.5,2762.3,0.00446086]
[1645972734617,4.77758671,2762.5,2762.3,0.00446094]
[1645972734814,15.87758671,2762.5,2762.3,0.00446094]
[1645972735013,15.87758671,2762.5,2762.3,6.094e-05]
[1645972735014,15.09693,2762.5,2762.3,6.094e-05]
[1645972735218,14.9621,2762.4,2762.3,6.094e-05]
[1645972735415,0.3621,2762.0,2761.3,0.05448831]
[1645972735614,0.3621,2762.0,2761.1,0.05448831]
[1645972735821,0.3,2761.9,2761.1,0.05448831]
[1645972736015,1.38139626,2761.9,2761.1,0.05448831]
[1645972736252,1.74349626,2761.9,2760.9,0.05448831]
[1645972736653,1.74349626,2761.9,2760.4,6.3067]
[1645972736853,0.90612,2761.7,2760.5,1.5315066]
[1645972737053,1.26822,2761.7,2760.5,1.5315066]
[1645972737255,1.26822,2761.7,2760.7,0.05448831]
[1645972737256,1.56822,2761.7,2760.7,0.05448831]
[1645972737853,1.20612,2761.7,2760.7,0.05448831]
[1645972738054,0.3,2761.8,2761.1,0.05448831]
[1645972738254,2.429,2762.3,2761.6,0.05448831]
[1645972738459,2.429,2762.3,2760.2,11.4621]
[1645972738460,2.0,2762.3,2760.2,0.3621]
[1645972738657,3.5,2762.2,2761.2,0.05448831]
[1645972738867,2.6,2762.3,2760.4,0.3621]
[1645972739059,0.3621,2762.0,2760.9,0.05448831]
[1645972739259,0.3621,2762.0,2760.6,1.4442653]
[1645972739460,11.4,2762.2,2761.6,0.05890207]
[1645972739461,0.3,2762.2,2761.6,0.05890207]
[1645972739760,3.2059,2762.3,2761.7,0.05448831]
[1645972740404,0.25,2762.4,2761.6,0.00441376]
[1645972740603,0.25,2762.4,2760.9,4.8621]
[1645972740604,1.0,2762.5,2762.1,0.05448831]
[1645972740904,2.0,2762.8,2762.1,0.05448831]
[1645972741108,2.3621,2762.8,2762.1,0.05448831]
[1645972741303,2.3621,2762.8,2760.9,4.8]
[1645972741603,2.3621,2762.8,2761.4,0.05448831]
[1645972741802,2.3621,2762.8,2761.4,0.00448831]
[1645972741803,2.6621,2762.8,2761.4,0.00448831]
[1645972742505,2.6621,2762.8,2761.4,1.06656102]
[1645972742705,0.6121,2763.1,2761.5,3.5]
[1645972743104,0.9121,2763.1,2761.5,4.8621]
[1645972743504,0.9121,2763.1,2761.5,4.5]
[1645972743505,12.0121,2763.1,2761.5,4.5]
[1645972743770,12.0121,2763.1,2761.2,5.6056]
[1645972743771,1.9121,2763.1,2761.2,5.6056]
[1645972743964,2.3411,2763.1,2761.2,6.6056]
[1645972744165,0.3621,2762.9,2761.2,5.6056]
[1645972744366,0.3621,2762.9,2761.1,3.5]
[1645972744367,0.01256582,2762.8,2762.2,0.00442094]
[1645972744669,1.56782,2762.9,2762.2,0.00442094]
[1645972744870,0.6621,2762.9,2762.2,0.00442094]
[1645972745070,0.3,2762.9,2762.2,0.00442094]
[1645972745267,0.3621,2762.8,2762.2,0.00442094]
[1645972745467,0.3,2762.9,2762.2,0.00442094]
[1645972745870,0.6621,2763.0,2762.2,0.00442094]
[1645972746273,0.3621,2762.9,2762.2,0.00442094]
[1645972746668,0.6621,2762.9,2761.4,4.8621]
[1645972747267,0.3,2762.9,2761.4,4.8621]
[1645972747505,0.25,2763.1,2762.1,1.3688439]
[1645972749111,0.25,2763.1,2762.2,0.00442908]
[1645972750114,0.3621,2762.8,2762.2,0.00442908]
[1645972750314,0.3621,2762.8,2762.2,0.00359846]
[1645972752251,0.6621,2762.8,2762.2,0.00359846]
[1645972752452,0.3621,2762.6,2762.2,0.00359846]
[1645972752653,2.3621,2762.4,2762.2,0.00359846]
[1645972752952,13.7621,2762.4,2762.2,0.00359846]
[1645972753349,12.7217423,2762.3,2762.2,0.00359846]
[1645972753755,12.7217423,2762.3,2762.2,0.00719692]
[1645972753959,12.7217423,2762.3,2762.2,0.00359846]
[1645972755005,12.7217423,2762.3,2762.1,0.00385388]
[1645972755307,1.26808,2762.2,2762.1,0.00385388]
[1645972755505,1.56808,2762.2,2762.1,0.00385388]
[1645972755909,13.09708,2762.2,2762.1,0.00385388]
[1645972756109,14.00686926,2762.2,2762.1,0.00385388]
[1645972756308,12.4621,2762.1,2762.0,0.00385402]
[1645972756615,14.70331,2762.1,2762.0,0.00385402]
[1645972756807,15.70331,2762.1,2762.0,0.00385402]
[1645972757009,16.61309926,2762.1,2762.0,5.402e-05]
[1645972757215,11.1,2761.9,2761.1,0.01542105]
[1645972757416,11.4621,2761.7,2760.0,1.90137406]
[1645972757615,0.3621,2761.1,2760.1,1.53189881]
[1645972757816,0.3621,2761.1,2760.2,1.53189881]
[1645972757817,1.0911,2761.1,2760.2,1.53189881]
[1645972758015,1.0911,2761.1,2759.9,1.2336]
[1645972758216,1.0911,2761.1,2760.0,1.5319445]
[1645972759260,2.37279141,2761.1,2760.0,1.5319445]
[1645972759458,13.47279141,2761.1,2760.0,1.5319445]
[1645972759658,2.37279141,2761.1,2760.0,1.5319445]
[1645972760456,13.47279141,2761.1,2760.0,1.5319445]
[1645972760662,5.8621,2760.7,2759.5,0.007]
[1645972760860,0.3621,2760.5,2759.5,0.007]
[1645972761061,0.3621,2760.3,2759.5,0.007]
[1645972761259,11.4621,2760.3,2759.5,0.007]
[1645972761461,0.3621,2760.0,2759.5,0.007]
[1645972761661,1.26877,2760.0,2759.5,0.007]
[1645972761866,0.3621,2759.8,2759.5,0.007]
[1645972762061,13.8911,2759.7,2759.5,0.007]
[1645972762260,2.429,2759.7,2759.6,0.00442035]
[1645972762518,2.0,2759.7,2759.6,0.00442035]
[1645972763520,2.0,2759.7,2759.5,0.01142051]
[1645972764326,2.3621,2759.7,2759.5,0.01142051]
[1645972764725,2.0,2759.7,2759.5,0.01142059]
[1645972766673,1.18008108,2760.7,2759.5,0.01142059]
[1645972766874,2.0,2760.2,2759.5,0.01142059]
[1645972767078,2.0,2760.2,2759.5,0.01057761]
[1645972767286,0.90646,2760.6,2759.5,0.01057761]
[1645972767473,2.90646,2760.6,2759.5,0.01057761]
[1645972768273,2.90646,2760.6,2759.9,0.00357703]
[1645972769075,2.0,2760.6,2759.9,0.00357703]
[1645972769274,0.25,2760.4,2759.9,0.00357703]
[1645972769474,0.25,2760.4,2760.1,0.00357677]
[1645972770613,0.25,2760.4,2760.1,0.00369215]
[1645972770816,1.48792684,2761.6,2760.1,0.00369215]
[1645972770817,0.38819997,2761.2,2760.4,0.32297624]
[1645972771014,0.13819997,2761.2,2760.4,0.32297624]
[1645972771615,0.13819997,2761.2,2760.4,4.18507624]
[1645972771915,0.13819997,2761.2,2761.0,1.43040404]
[1645972772117,2.0,2761.5,2761.1,3.5]
[1645972772323,0.25,2761.8,2761.1,4.5]
[1645972772520,0.25,2762.5,2761.1,4.8621]
[1645972772916,2.25,2762.5,2761.1,4.8621]
[1645972773119,2.6121,2762.5,2761.3,0.00369054]
[1645972773318,14.62188926,2762.5,2761.3,0.00369054]
[1645972773520,12.80088926,2762.4,2761.3,0.00369054]
[1645972773759,14.80088926,2762.4,2761.3,0.00369054]
[1645972773962,0.18008108,2762.3,2761.3,0.00369054]
[1645972774261,11.4621,2762.1,2761.7,0.00368785]
[1645972774559,12.1911,2762.1,2761.7,0.00368785]
[1645972774765,0.18008108,2762.0,2761.7,0.00368785]
[1645972774969,0.3621,2761.9,2761.7,0.00368785]
[1645972775164,0.6621,2761.9,2761.7,0.00368785]
[1645972775566,0.3,2761.9,2761.7,0.00368785]
[1645972775768,1.74822108,2762.0,2761.7,0.00368785]
[1645972776368,0.3,2762.0,2761.7,0.00368785]
[1645972776566,0.3,2762.0,2761.7,0.0073757]
[1645972776766,0.3621,2762.1,2761.7,0.00368785]
[1645972776966,2.6,2762.2,2761.7,0.00368785]
[1645972777166,2.3,2762.2,2761.7,0.00368785]
[1645972777405,13.4,2762.2,2761.7,0.00368785]
[1645972777610,3.0911,2762.2,2761.7,0.00368785]
[1645972777809,2.729,2762.2,2761.8,0.00382974]
[1645972778705,3.3411,2762.2,2761.8,0.00382974]
[1645972778907,2.979,2762.2,2761.8,0.00382974]
[1645972779106,2.979,2762.2,2761.9,0.00382968]
[1645972780407,2.979,2762.2,2761.5,1.24717206]
[1645972780610,2.25,2762.2,2761.6,3.5]
[1645972780811,0.25,2762.2,2761.7,7.2414]
[1645972781009,0.25,2762.2,2761.8,3.5]
[1645972781461,0.25,2762.2,2761.9,7.2414]
[1645972781658,0.25,2762.2,2762.0,4.76265601]
[1645972781857,0.25,2762.2,2762.0,1.26265601]
[1645972782356,0.25,2762.2,2761.9,7.2414]
[1645972782764,0.25,2762.2,2762.0,3.5]
[1645972783164,0.25,2762.2,2761.9,7.24511288]
[1645972783963,0.25,2762.2,2762.0,1.01634926]
[1645972788416,0.25,2762.2,2762.1,7.2409]
[1645972788680,0.02010509,2763.0,2762.1,7.603]
[1645972788872,0.25,2762.7,2762.1,13.903]
[1645972789072,0.25,2762.7,2762.3,0.3621]
[1645972789272,8.088e-05,2763.0,2762.3,5.6621]
[1645972789477,0.25,2763.2,2762.7,0.3621]
[1645972789674,0.25,2763.2,2762.6,8.0]
[1645972789675,6.379e-05,2763.4,2763.1,0.3621]
[1645972789873,0.25,2763.8,2763.1,0.3621]
[1645972789874,0.25,2763.8,2763.4,0.3621]
[1645972790073,7.36,2765.0,2763.6,0.3621]
[1645972790074,0.90978926,2764.9,2763.6,0.3621]
[1645972790278,7.36,2765.0,2764.1,0.3621]
[1645972790476,0.90978926,2765.4,2764.1,0.3621]
[1645972790977,0.90978926,2765.4,2763.7,7.6657]
[1645972790978,1.27188926,2765.2,2763.7,8.2367]
[1645972791175,0.3621,2765.2,2763.7,8.2367]
[1645972791372,0.00417765,2764.9,2763.7,8.2367]
[1645972791972,0.00417765,2764.9,2764.0,1.28989695]
[1645972792175,0.00417765,2764.9,2763.7,8.2367]
[1645972792408,0.00552423,2764.4,2763.7,8.2367]
[1645972792708,0.00552423,2764.4,2763.7,7.2367]
[1645972793515,0.3621,2764.3,2763.7,7.2367]
[1645972793715,0.3621,2764.1,2763.7,7.2367]
[1645972793915,11.10552435,2764.2,2763.7,7.2367]
[1645972793916,0.3621,2763.9,2763.7,7.2367]
[1645972794318,0.6621,2763.9,2763.7,7.2367]
[1645972794917,0.36762447,2763.9,2763.7,7.2367]
[1645972795117,0.66762447,2763.9,2763.7,7.2367]
[1645972795925,1.57300447,2763.9,2763.7,7.2367]
[1645972796163,12.67235952,2763.9,2763.7,7.2367]
[1645972796863,1.57235952,2763.9,2763.7,4.78728131]
[1645972797162,1.57723904,2763.9,2763.7,4.78728131]
[1645972797361,1.57235952,2763.9,2763.7,4.78728131]
[1645972797562,0.30487952,2763.9,2763.7,4.78728131]
[1645972797963,11.8911,2763.8,2763.7,4.78728131]
[1645972798263,12.8911,2763.8,2763.7,4.78728131]
[1645972798468,13.07118108,2763.8,2763.7,4.78728131]
[1645972798869,13.97659108,2763.8,2763.7,4.78728131]
[1645972800118,13.97659108,2763.8,2763.0,0.00377526]
[1645972800119,11.4621,2763.6,2763.0,0.00377526]
[1645972800316,11.4621,2763.4,2763.0,0.00377526]
[1645972800515,12.1911,2763.4,2763.0,0.00377526]
[1645972800917,1.59975847,2763.2,2763.0,0.00377526]
[1645972801124,11.8911,2763.1,2763.0,7.526e-05]
[1645972801320,0.3621,2762.4,2761.3,10.6071]
[1645972801517,0.3621,2762.4,2761.3,2.3229]
[1645972802723,1.33491,2762.5,2761.4,1.27439576]
[1645972803018,0.429,2762.5,2761.4,1.63649576]
[1645972803218,0.729,2762.5,2761.7,0.00375771]
[1645972803420,0.3,2762.5,2761.7,0.00375771]
[1645972803663,0.429,2762.9,2761.7,0.00375771]
[1645972803664,0.729,2762.9,2761.7,0.00375771]
[1645972803863,2.0,2763.1,2762.2,1.03913672]
[1645972804463,2.0,2763.1,2762.2,1.04289382]
[1645972804869,0.00495643,2763.3,2762.9,1.24023604]
[1645972805668,0.00495643,2763.3,2762.9,1.24399219]
[1645972805669,0.00991397,2763.3,2762.9,1.24399219]
[1645972805868,0.00495754,2763.3,2762.9,1.24399219]
[1645972806069,0.00495754,2763.3,2763.0,0.3621]
[1645972806666,0.00495754,2763.3,2762.9,1.60609219]
[1645972806869,0.00495754,2763.3,2762.9,1.61015463]
[1645972806870,0.01000766,2763.3,2762.9,1.61015463]
[1645972807067,0.00505012,2763.3,2762.9,0.00406244]
[1645972808222,0.00505005,2763.3,2762.9,0.00406244]
[1645972809527,0.00505005,2763.3,2763.2,1.38992812]
[1645972809728,0.00505005,2763.3,2762.9,0.00406244]
[1645972810625,0.0049335,2763.3,2763.2,1.22520406]
[1645972811257,0.0049335,2763.3,2763.2,1.58730406]
[1645972811757,0.25,2763.6,2763.2,1.58730406]
[1645972811758,3.358e-05,2763.4,2763.2,1.58730406]
[1645972811964,3.358e-05,2763.4,2763.2,1.88730406]
[1645972812157,0.01972958,2764.0,2763.4,0.36286642]
[1645972812361,0.01972958,2764.0,2763.4,0.66286642]
[1645972812558,0.01972958,2764.0,2763.4,0.00076642]
[1645972812958,0.25,2764.3,2763.4,0.00076642]
[1645972813361,0.18008108,2764.2,2763.4,0.00076642]
[1645972813658,0.679,2764.3,2763.4,0.00076642]
[1645972813862,0.25,2764.3,2763.4,0.00076642]
[1645972814063,0.00383285,2763.9,2763.4,0.00076642]
[1645972814663,0.00383285,2763.9,2763.4,0.36286642]
[1645972814923,0.00383285,2763.9,2763.5,1.22552247]
[1645972815311,0.00518157,2763.8,2763.5,1.22552247]
[1645972815510,0.00518157,2763.8,2763.5,1.58762247]
[1645972817414,0.00518157,2763.8,2763.7,0.3621]
[1645972817613,8.157e-05,2763.8,2763.7,0.3621]
[1645972817818,0.0259465,2764.2,2763.9,0.3621]
[1645972818014,0.02067277,2764.2,2763.9,0.3621]
[1645972819173,0.90978926,2765.2,2764.5,1.25646651]
[1645972819379,8.26978926,2765.3,2764.5,1.25646651]
[1645972820176,20.27471926,2765.3,2763.9,0.00111538]
[1645972820379,0.90978926,2764.9,2763.9,0.00111538]
[1645972820781,0.3,2764.9,2763.9,0.00111538]
[1645972820980,1.33878926,2765.0,2763.9,0.00111538]
[1645972821177,0.90978926,2764.9,2763.9,0.00111538]
[1645972821378,0.0052725,2764.5,2763.9,0.00371792]
[1645972821988,0.18535358,2764.5,2763.9,0.00371792]
[1645972822451,0.429,2764.4,2763.9,0.00371792]
[1645972822635,0.00527258,2764.3,2763.9,0.00371792]
[1645972823842,0.00529846,2764.3,2763.9,0.0038047]
[1645972826170,0.00492163,2764.3,2763.9,0.0038047]
[1645972826772,0.3621,2764.2,2763.9,0.0038047]
[1645972826973,0.7911,2764.1,2763.9,0.0038047]
[1645972827373,0.97118108,2764.1,2763.9,0.00761834]
[1645972827572,0.7911,2764.1,2763.9,0.00381364]
[1645972828373,0.429,2764.1,2763.9,0.00381364]
[1645972828571,0.7911,2764.1,2763.9,0.00381374]
[1645972828775,0.429,2764.1,2763.9,0.00381374]
[1645972829377,1.33878926,2764.1,2763.9,0.00381374]
[1645972831014,1.33878926,2764.1,2763.9,0.0038166]
[1645972831421,1.70088926,2764.1,2763.9,0.0038166]
[1645972831618,1.27188926,2764.0,2763.9,0.0038166]
[1645972832119,1.57188926,2764.0,2763.9,0.0038166]
[1645972832919,1.20978926,2764.0,2763.9,0.0038166]
[1645972833121,0.3,2764.0,2763.9,0.0038166]
[1645972833323,1.50978926,2764.1,2763.8,0.00381667]
[1645972833521,1.20978926,2764.1,2763.8,0.00381667]
[1645972834572,1.20978926,2764.1,2763.8,0.00381657]
[1645972836674,0.90978926,2764.0,2763.8,0.00381657]
[1645972836873,0.90978926,2764.0,2763.8,0.00763314]
[1645972837074,1.50978926,2764.1,2763.8,0.00381657]
[1645972837274,1.20978926,2764.1,2763.8,0.00381657]
[1645972837510,0.90978926,2764.1,2763.8,0.00381657]
[1645972837714,0.90978926,2764.2,2763.8,0.00381657]
[1645972837910,0.0049537,2764.3,2763.8,0.00381657]
[1645972838109,0.00990949,2764.3,2763.8,0.15224011]
[1645972838308,0.00495579,2764.3,2763.8,0.14842354]
[1645972838721,0.00495579,2764.3,2763.8,0.00279718]
[1645972839516,0.00495593,2764.3,2763.9,0.1484234]
[1645972839714,0.00495593,2764.3,2763.9,0.0038234]
[1645972839916,0.00495593,2764.3,2763.9,1.20451259]
[1645972840115,0.00495593,2764.3,2764.0,0.1446]
[1645972840515,0.00380987,2764.3,2764.0,0.1446]
[1645972840716,0.00380987,2764.3,2763.7,7.2367]
[1645972841171,0.00380987,2764.3,2763.7,8.4372154]
[1645972841373,0.00380987,2764.3,2763.8,0.1446]
[1645972841771,0.00495552,2764.3,2763.9,0.00381989]
[1645972842975,0.00495566,2764.3,2763.9,0.00381987]
[1645972844178,0.00505358,2764.3,2763.9,0.00381987]
[1645972845320,0.01010194,2764.3,2763.9,0.00762234]
[1645972845522,0.00504836,2764.3,2763.9,0.00380247]
[1645972847820,0.00494086,2764.3,2763.9,0.00380247]
[1645972849080,0.00494941,2764.3,2763.9,0.00383097]
[1645972850383,0.91473867,2764.3,2763.9,0.00383097]
[1645972850589,0.00494941,2764.3,2763.9,0.00383097]
[1645972851482,0.00495983,2764.3,2763.9,0.00383097]
[1645972852716,0.0049562,2764.3,2763.9,0.00381887]
[1645972853514,0.0049562,2764.3,2764.0,1.04501177]
[1645972854120,0.0049562,2764.3,2763.9,0.00381887]
[1645972854321,0.91474546,2764.3,2763.9,0.00381887]
[1645972854526,0.90978926,2764.0,2763.9,0.00381887]
[1645972854725,0.3,2764.0,2763.9,0.00381887]
[1645972855121,1.94162953,2764.0,2763.9,0.00381887]
[1645972855422,6.65606061,2764.0,2763.9,0.00381887]
[1645972855921,3.15606061,2764.0,2763.9,0.00256797]
[1645972856362,4.98552899,2764.0,2763.8,0.00382087]
[1645972856565,11.4621,2763.9,2763.8,0.00382087]
[1645972856766,2.92056838,2763.9,2763.8,0.00382087]
[1645972856965,3.3621,2763.8,2762.4,1.3351]
[1645972857266,3.3621,2763.8,2762.3,1.1707]
[1645972857267,13.59156838,2763.5,2762.3,1.1707]
[1645972857478,19.4621,2763.4,2761.8,7.0235]
[1645972857665,1.27639103,2762.9,2761.9,1.53118243]
[1645972857865,5.07639103,2762.9,2761.9,1.53118243]
[1645972858064,1.57639103,2762.9,2761.9,1.53118243]
[1645972858267,12.67639103,2762.9,2762.0,1.53118243]
[1645972858465,0.3621,2762.7,2762.1,1.53118243]
[1645972858663,1.26789,2762.7,2761.7,6.6041]
[1645972858873,1.26789,2762.7,2761.8,1.53125627]
[1645972858874,1.56789,2762.7,2761.8,1.53125627]
[1645972859072,0.3621,2762.5,2761.6,0.1448]
[1645972859268,0.3621,2762.3,2761.5,1.1707]
[1645972859468,0.3621,2762.3,2761.6,1.53146827]
[1645972859670,0.3621,2762.3,2761.5,1.1707]
[1645972859930,4.229,2762.5,2761.9,0.00455518]
[1645972859931,1.26803,2762.2,2761.9,0.00455518]
[1645972860220,1.56803,2762.2,2761.9,0.00455518]
[1645972861119,1.56803,2762.2,2761.9,0.00454763]
[1645972861521,1.33483,2762.5,2761.9,0.00454763]
[1645972861825,2.13819997,2762.7,2761.9,0.00454763]
[1645972862425,2.13819997,2762.7,2762.1,0.00454739]
[1645972863023,2.43819997,2762.7,2762.1,0.00454739]
[1645972863525,2.43819997,2762.7,2762.3,0.00454706]
[1645972864067,2.13819997,2762.7,2762.3,0.00454706]
[1645972864269,8.75286,2763.6,2762.3,0.00454706]
[1645972864270,0.91429103,2763.3,2762.3,0.00454706]
[1645972864472,2.0,2763.1,2762.3,0.00454706]
[1645972864668,2.0,2763.1,2762.4,0.00369212]
[1645972865472,2.06983103,2763.5,2762.4,0.00369212]
[1645972865473,2.0,2763.4,2762.4,0.00369212]
[1645972865872,2.0,2763.4,2762.6,0.00369179]
[1645972866276,0.25,2763.5,2762.6,0.36579179]
[1645972866573,0.91429103,2764.1,2762.8,0.3621]
[1645972866772,2.00491074,2764.2,2763.2,1.14596494]
[1645972866773,2.91920177,2764.2,2763.2,1.14596494]
[1645972866973,0.91429103,2764.1,2763.2,1.14596494]
[1645972867172,0.91429103,2764.1,2762.9,4.50369138]
[1645972867621,0.91429103,2764.0,2762.9,4.86579138]
[1645972867823,1.21429103,2764.1,2762.9,4.86579138]
[1645972868023,1.21429103,2764.1,2763.0,3.5]
[1645972868224,1.21429103,2764.1,2763.0,3.8621]
[1645972868424,1.21429103,2764.1,2763.4,0.00382872]
[1645972868826,0.3,2764.1,2763.4,0.00382872]
[1645972869027,1.21429103,2764.1,2763.4,1.05906749]
[1645972869226,0.91924417,2764.2,2763.4,0.00382872]
[1645972869726,0.91925466,2764.2,2763.6,0.00382837]
[1645972870629,0.91429103,2764.1,2763.7,0.00114849]
[1645972871028,1.27639103,2764.1,2763.7,0.00114849]
[1645972871274,1.27639103,2763.9,2763.7,0.00114849]
[1645972871467,2.18177103,2763.9,2763.7,0.00114849]
[1645972871868,2.18177103,2763.9,2763.7,0.00114204]
[1645972872072,0.3621,2763.8,2763.7,0.00114204]
[1645972872269,0.3621,2763.8,2763.7,0.00034204]
[1645972872270,1.27276262,2763.8,2763.7,0.00034204]
[1645972872468,0.54218108,2763.8,2763.7,0.00034204]
[1645972872869,1.91361762,2763.8,2763.7,0.00034204]
[1645972873067,0.54218108,2763.8,2762.6,2.2825]
[1645972873269,0.3621,2763.5,2762.6,2.2825]
[1645972873574,0.3621,2763.5,2762.5,6.2043]
[1645972873774,0.3621,2763.5,2762.5,1.0]
[1645972874170,0.3621,2763.5,2762.1,3.8]
[1645972874370,0.3621,2763.5,2762.2,1.53100997]
[1645972874670,0.3621,2763.5,2762.3,3.5]
[1645972874916,0.3621,2763.5,2762.3,4.5]
[1645972875114,0.91067779,2763.6,2762.4,1.13482201]
[1645972875314,0.3,2763.6,2762.5,3.5]
[1645972875516,0.3,2763.6,2762.8,0.00136613]
[1645972875714,1.27277779,2763.6,2762.8,0.00136613]
[1645972876715,0.3621,2763.6,2762.5,3.5]
[1645972876917,1.27277779,2763.6,2762.4,1.21997533]
[1645972877119,1.27277779,2763.6,2762.5,3.5]
[1645972877318,1.21067779,2763.7,2762.5,4.5]
[1645972877519,0.48008108,2763.8,2762.6,11.4621]
[1645972877520,0.91067779,2763.8,2762.6,11.4621]
[1645972877719,2.0,2764.1,2762.8,0.3621]
[1645972877720,0.91067779,2764.1,2762.8,0.3621]
[1645972877920,0.91483708,2764.2,2763.0,0.3621]
[1645972878121,0.00415929,2764.2,2763.1,3.8621]
[1645972878321,0.91483708,2764.2,2763.1,4.8621]
[1645972878522,0.00415929,2764.2,2763.5,1.0194349]
[1645972878773,0.00415929,2764.2,2763.1,4.8621]
[1645972879171,0.91483798,2764.2,2763.1,4.8621]
[1645972879371,0.91483798,2764.2,2763.1,1.0]
[1645972879772,0.91483798,2764.2,2763.3,1.31844575]
[1645972880173,0.00416019,2764.2,2763.3,1.31844575]
[1645972880372,0.00968519,2764.2,2763.5,0.00455849]
[1645972880573,0.005525,2764.2,2763.5,0.00455849]
[1645972881577,0.005525,2764.2,2763.6,0.00455831]
[1645972881578,0.00518273,2764.2,2763.6,0.00455831]
[1645972882834,0.0051828,2764.2,2763.6,0.00455831]
[1645972883742,1.27277779,2763.8,2763.6,0.00455831]
[1645972883939,1.70177779,2763.8,2763.6,0.00455831]
[1645972884146,0.18008108,2763.7,2763.6,0.00455831]
[1645972885142,0.18008108,2763.7,2763.5,0.00371294]
[1645972886489,0.18008108,2763.7,2763.5,0.00371301]
[1645972887392,1.45285887,2763.7,2763.5,0.00371301]
[1645972888194,1.09075887,2763.7,2763.5,0.00371301]
[1645972888794,1.09075887,2763.7,2763.5,0.00396866]
[1645972888795,0.91067779,2763.7,2763.5,0.00396866]
[1645972889400,2.77821779,2763.8,2763.5,0.00396866]
[1645972889797,2.47821779,2763.8,2763.5,0.00396866]
[1645972890540,0.91067779,2763.7,2763.5,0.00396866]
[1645972891139,0.91067779,2763.7,2763.5,0.00793725]
[1645972891342,0.91067779,2763.7,2763.5,0.00396859]
[1645972891541,1.86754,2763.8,2763.5,0.00396859]
[1645972891542,0.91067779,2763.6,2763.5,0.00396859]
[1645972891740,1.21067779,2763.6,2763.5,0.00396859]
[1645972892141,0.3,2763.6,2763.5,0.00396859]
[1645972892342,1.21067779,2763.7,2763.5,0.00292018]
[1645972892542,1.21067779,2763.7,2763.4,0.00411218]
[1645972892742,0.91067779,2763.6,2763.4,0.00411218]
[1645972893543,1.37143654,2763.8,2763.5,5.0]
[1645972893777,1.37517048,2764.4,2763.5,6.0]
[1645972893975,0.00373394,2764.4,2763.6,3.5]
[1645972894172,0.00373394,2764.4,2763.5,6.0]
[1645972894173,1.37143654,2764.6,2763.5,6.0]
[1645972894373,0.00373394,2764.4,2763.5,6.0]
[1645972894577,0.00373394,2764.4,2763.6,4.54324495]
[1645972894773,1.37143654,2764.5,2763.6,5.54324495]
[1645972894972,0.00373394,2764.4,2763.6,5.54324495]
[1645972895172,1.37143654,2764.6,2763.6,5.54324495]
[1645972895475,0.00373394,2764.5,2763.6,5.54324495]
[1645972895675,1.37517048,2764.7,2763.6,5.54324495]
[1645972895979,0.00552564,2764.2,2763.6,5.54324495]
[1645972896178,0.00552564,2764.2,2763.7,3.5]
[1645972896577,0.00552564,2764.2,2763.7,4.5]
[1645972896876,0.00552564,2764.2,2763.5,0.00455592]
[1645972897276,0.00552552,2764.2,2763.5,0.00455592]
[1645972897721,0.00552552,2764.2,2763.5,1.14499703]
[1645972898324,0.01105089,2764.2,2763.5,1.14955295]
[1645972898524,0.00552537,2764.2,2763.5,1.14499703]
[1645972899226,0.00552537,2764.2,2763.5,0.00455592]
[1645972900232,0.00552537,2764.2,2763.6,1.42536648]
[1645972900635,0.00552537,2764.2,2763.6,1.78746648]
[1645972900835,0.00488117,2764.2,2763.6,1.78746648]
[1645972901032,0.00488117,2764.2,2763.5,0.00368753]
[1645972901268,0.00488117,2764.2,2763.5,0.36578753]
[1645972902072,0.00488117,2764.2,2763.6,3.5]
[1645972902277,0.00488117,2764.2,2763.6,4.5]
[1645972902674,0.00488117,2764.2,2763.6,1.0]
[1645972902876,0.91691178,2764.2,2763.5,0.00368753]
[1645972903276,0.91691184,2764.2,2763.5,0.00368753]
[1645972903681,0.3621,2763.8,2763.5,0.00368753]
[1645972903879,1.27413061,2763.7,2763.5,0.00368753]
[1645972904083,1.27413061,2763.6,2763.5,0.00368753]
[1645972904276,0.91203061,2763.7,2763.5,0.00368753]
[1645972904477,0.3,2763.6,2763.5,0.00368753]
[1645972904678,1.21203061,2763.6,2763.5,0.00382901]
[1645972905722,1.21203061,2763.6,2763.4,0.00382911]
[1645972906223,0.91203061,2763.6,2763.4,0.00382911]